[Event "Titled Tuesday Blitz August 10 2021"]
[White "Maximov, Dmitry"]
[Black "Nakamura, Hikaru"]
[WhiteFideId "14105659"]
[BlackFideId "2016192"]
[WhiteElo "2494"]
[BlackElo "2900"]
[Result "0-1"]
[Round "03"]
[TimeControl "180+1"]
[Date "2021.08.10"]
[WhiteClock "0:00:10"]
[BlackClock "0:00:36"]

1. e4 {[%clk 0:03:00]}  g6 {[%clk 0:02:58]} 2. d4 {[%clk 0:03:00]}  Bg7 {[%clk 0:02:59]} 3. c3 {[%clk 0:03:00]}  c6 {[%clk 0:02:58]} 4. Bd3 {[%clk 0:02:57]}  d6 {[%clk 0:02:59]} 5. f4 {[%clk 0:02:56]}  d5 {[%clk 0:02:55]} 6. e5 {[%clk 0:02:56]}  h5 {[%clk 0:02:55]} 7. Nf3 {[%clk 0:02:36]}  Bg4 {[%clk 0:02:54]} 8. Nbd2 {[%clk 0:02:33]}  Nh6 {[%clk 0:02:52]} 9. h3 {[%clk 0:02:33]}  Bf5 {[%clk 0:02:53]} 10. Qe2 {[%clk 0:02:31]}  Bxd3 {[%clk 0:02:51]} 11. Qxd3 {[%clk 0:02:31]}  Nf5 {[%clk 0:02:48]} 12. O-O {[%clk 0:02:30]}  h4 {[%clk 0:02:48]} 13. Rf2 {[%clk 0:02:30]}  e6 {[%clk 0:02:47]} 14. Nf1 {[%clk 0:02:30]}  Nd7 {[%clk 0:02:48]} 15. N1h2 {[%clk 0:02:30]}  c5 {[%clk 0:02:48]} 16. Ng4 {[%clk 0:02:28]}  Rc8 {[%clk 0:02:44]} 17. Be3 {[%clk 0:02:23]}  Bf8 {[%clk 0:02:41]} 18. Rd1 {[%clk 0:02:17]}  c4 {[%clk 0:02:38]} 19. Qe2 {[%clk 0:02:14]}  b5 {[%clk 0:02:37]} 20. a3 {[%clk 0:02:14]}  a5 {[%clk 0:02:37]} 21. Ra1 {[%clk 0:02:14]}  Be7 {[%clk 0:02:37]} 22. Bd2 {[%clk 0:02:11]}  Nb8 {[%clk 0:02:37]} 23. Ng5 {[%clk 0:02:08]}  Nc6 {[%clk 0:02:35]} 24. Kh2 {[%clk 0:01:59]}  Kf8 {[%clk 0:02:35]} 25. Rff1 {[%clk 0:01:54]}  Kg7 {[%clk 0:02:35]} 26. Be1 {[%clk 0:01:53]}  Qd7 {[%clk 0:02:31]} 27. Qf3 {[%clk 0:01:48]}  b4 {[%clk 0:02:25]} 28. axb4 {[%clk 0:01:46]}  axb4 {[%clk 0:02:26]} 29. Bf2 {[%clk 0:01:45]}  Rb8 {[%clk 0:02:20]} 30. Ra6 {[%clk 0:01:40]}  Qb7 {[%clk 0:02:13]} 31. Rfa1 {[%clk 0:01:38]}  Rh5 {[%clk 0:01:53]} 32. Ne3 {[%clk 0:01:26]}  Nxe3 {[%clk 0:01:16]} 33. Bxe3 {[%clk 0:01:19]}  Qc8 {[%clk 0:01:12]} 34. Qg4 {[%clk 0:01:14]}  bxc3 {[%clk 0:01:11]} 35. bxc3 {[%clk 0:01:14]}  Bxg5 {[%clk 0:01:10]} 36. fxg5 {[%clk 0:01:14]}  Ne7 {[%clk 0:01:11]} 37. Qf4 {[%clk 0:01:06]}  Nf5 {[%clk 0:01:11]} 38. Ra7 {[%clk 0:01:03]}  Rh8 {[%clk 0:01:07]} 39. Bc1 {[%clk 0:01:02]}  Rb7 {[%clk 0:01:06]} 40. R7a6 {[%clk 0:00:58]}  Rb3 {[%clk 0:01:06]} 41. Qd2 {[%clk 0:00:54]}  Ng3 {[%clk 0:01:04]} 42. Qe1 {[%clk 0:00:49]}  Qc7 {[%clk 0:01:00]} 43. Ra7 {[%clk 0:00:48]}  Rb7 {[%clk 0:01:00]} 44. Rxb7 {[%clk 0:00:47]}  Qxb7 {[%clk 0:01:00]} 45. Ba3 {[%clk 0:00:46]}  Ra8 {[%clk 0:00:58]} 46. Bb4 {[%clk 0:00:42]}  Nf5 {[%clk 0:00:56]} 47. Qb1 {[%clk 0:00:39]}  Qc8 {[%clk 0:00:54]} 48. Ra2 {[%clk 0:00:39]}  Qd8 {[%clk 0:00:54]} 49. Rxa8 {[%clk 0:00:35]}  Qxa8 {[%clk 0:00:55]} 50. Bc5 {[%clk 0:00:33]}  Qd8 {[%clk 0:00:54]} 51. Qc1 {[%clk 0:00:31]}  Qa5 {[%clk 0:00:53]} 52. Bb4 {[%clk 0:00:31]}  Qa4 {[%clk 0:00:52]} 53. Bc5 {[%clk 0:00:32]}  Qa2 {[%clk 0:00:52]} 54. Qf4 {[%clk 0:00:24]}  Qb2 {[%clk 0:00:46]} 55. Bb4 {[%clk 0:00:20]}  Qe2 {[%clk 0:00:40]} 56. Qf3 {[%clk 0:00:18]}  Qe1 {[%clk 0:00:36]} 57. Qf4 {[%clk 0:00:16]}  Ne3 {[%clk 0:00:35]} 58. Qf6+ {[%clk 0:00:16]}  Kg8 {[%clk 0:00:35]} 59. Qd8+ {[%clk 0:00:10]}  Kh7 {[%clk 0:00:35]} 60. Qf8 {[%clk 0:00:10]}  Nf1+ {[%clk 0:00:34]} 61. Kg1 {[%clk 0:00:09]}  Ng3+ {[%clk 0:00:35]} 62. Kh2 {[%clk 0:00:10]}  Qh1# {[%clk 0:00:36]} 0-1


[Site "https://www.chess.com"]

[Event "Titled Tuesday Blitz August 10 2021"]
[White "Sevian, Samuel"]
[Black "Rodriguez Hernandez, Luis Daniel"]
[WhiteFideId "2040506"]
[BlackFideId "3506770"]
[WhiteElo "2969"]
[BlackElo "2133"]
[Result "1-0"]
[Round "03"]
[TimeControl "180+1"]
[Date "2021.08.10"]
[WhiteClock "0:02:18"]
[BlackClock "0:00:04"]

1. e4 {[%clk 0:03:00]}  e5 {[%clk 0:02:59]} 2. Nf3 {[%clk 0:02:50]}  Nc6 {[%clk 0:03:00]} 3. Bc4 {[%clk 0:02:50]}  Nf6 {[%clk 0:03:00]} 4. Ng5 {[%clk 0:02:49]}  d5 {[%clk 0:03:00]} 5. exd5 {[%clk 0:02:50]}  Nd4 {[%clk 0:03:00]} 6. c3 {[%clk 0:02:45]}  b5 {[%clk 0:03:01]} 7. Bf1 {[%clk 0:02:45]}  Nxd5 {[%clk 0:03:01]} 8. Ne4 {[%clk 0:02:45]}  Ne6 {[%clk 0:03:01]} 9. d4 {[%clk 0:02:44]}  exd4 {[%clk 0:02:35]} 10. Bxb5+ {[%clk 0:02:43]}  Bd7 {[%clk 0:02:34]} 11. Bd3 {[%clk 0:02:44]}  c5 {[%clk 0:01:50]} 12. O-O {[%clk 0:02:42]}  Be7 {[%clk 0:01:50]} 13. cxd4 {[%clk 0:02:41]}  cxd4 {[%clk 0:01:49]} 14. Nbd2 {[%clk 0:02:41]}  Ndf4 {[%clk 0:01:19]} 15. Nf3 {[%clk 0:02:41]}  Nxd3 {[%clk 0:01:09]} 16. Qxd3 {[%clk 0:02:42]}  Rb8 {[%clk 0:01:04]} 17. Rd1 {[%clk 0:02:42]}  Bb5 {[%clk 0:01:04]} 18. Qd2 {[%clk 0:02:42]}  d3 {[%clk 0:00:52]} 19. b3 {[%clk 0:02:41]}  Nd4 {[%clk 0:00:43]} 20. Nxd4 {[%clk 0:02:32]}  Qxd4 {[%clk 0:00:44]} 21. Nc3 {[%clk 0:02:32]}  Bc6 {[%clk 0:00:21]} 22. Qxd3 {[%clk 0:02:29]}  Qg4 {[%clk 0:00:15]} 23. Qg3 {[%clk 0:02:29]}  Qxg3 {[%clk 0:00:13]} 24. hxg3 {[%clk 0:02:30]}  O-O {[%clk 0:00:12]} 25. Be3 {[%clk 0:02:29]}  a5 {[%clk 0:00:10]} 26. Nd5 {[%clk 0:02:29]}  Ba3 {[%clk 0:00:08]} 27. Bc1 {[%clk 0:02:26]}  Rfd8 {[%clk 0:00:05]} 28. Nf6+ {[%clk 0:02:22]}  gxf6 {[%clk 0:00:05]} 29. Bxa3 {[%clk 0:02:23]}  Rxd1+ {[%clk 0:00:03]} 30. Rxd1 {[%clk 0:02:24]}  Rc8 {[%clk 0:00:02]} 31. Be7 {[%clk 0:02:23]}  f5 {[%clk 0:00:02]} 32. Bf6 {[%clk 0:02:23]}  h6 {[%clk 0:00:02]} 33. f3 {[%clk 0:02:23]}  Kh7 {[%clk 0:00:02]} 34. Rd6 {[%clk 0:02:24]}  a4 {[%clk 0:00:02]} 35. Kh2 {[%clk 0:02:21]}  axb3 {[%clk 0:00:02]} 36. axb3 {[%clk 0:02:22]}  Bb5 {[%clk 0:00:02]} 37. Rd5 {[%clk 0:02:21]}  Bc6 {[%clk 0:00:01]} 38. Rxf5 {[%clk 0:02:21]}  Kg6 {[%clk 0:00:02]} 39. Rf4 {[%clk 0:02:22]}  Bd5 {[%clk 0:00:03]} 40. b4 {[%clk 0:02:16]}  Rc4 {[%clk 0:00:03]} 41. Rxc4 {[%clk 0:02:17]}  Bxc4 {[%clk 0:00:04]} 42. Bc3 {[%clk 0:02:16]}  Kf5 {[%clk 0:00:04]} 43. g4+ {[%clk 0:02:17]}  Kg6 {[%clk 0:00:03]} 44. Kg3 {[%clk 0:02:17]}  h5 {[%clk 0:00:04]} 45. gxh5+ {[%clk 0:02:17]}  Kxh5 {[%clk 0:00:05]} 46. Kf4 {[%clk 0:02:18]}  Bf1 {[%clk 0:00:03]} 47. g4+ {[%clk 0:02:18]}  Kh4 {[%clk 0:00:03]} 48. Ke3 {[%clk 0:02:16]}  Kg3 {[%clk 0:00:03]} 49. Be1+ {[%clk 0:02:15]}  Kg2 {[%clk 0:00:04]} 50. g5 {[%clk 0:02:16]}  Bb5 {[%clk 0:00:03]} 51. f4 {[%clk 0:02:16]}  Kh3 {[%clk 0:00:04]} 52. Kd4 {[%clk 0:02:16]}  Kg4 {[%clk 0:00:04]} 53. Bd2 {[%clk 0:02:16]}  Kf5 {[%clk 0:00:04]} 54. Kc5 {[%clk 0:02:17]}  Be2 {[%clk 0:00:04]} 55. b5 {[%clk 0:02:18]}  Ke6 {[%clk 0:00:04]} 56. b6 {[%clk 0:02:18]}  Ba6 {[%clk 0:00:04]} 57. Kc6 {[%clk 0:02:18]} 1-0


[Site "https://www.chess.com"]

[Event "Titled Tuesday Blitz August 10 2021"]
[White "Svane, Rasmus"]
[Black "Tanenbaum, Zachary"]
[WhiteFideId "4657101"]
[BlackFideId "2060850"]
[WhiteElo "2669"]
[BlackElo "2165"]
[Result "0-1"]
[Round "03"]
[TimeControl "180+1"]
[Date "2021.08.10"]
[WhiteClock "0:00:05"]
[BlackClock "0:00:13"]

1. Nf3 {[%clk 0:03:00]}  d5 {[%clk 0:03:00]} 2. g3 {[%clk 0:03:01]}  Nf6 {[%clk 0:03:00]} 3. Bg2 {[%clk 0:03:01]}  c6 {[%clk 0:03:00]} 4. O-O {[%clk 0:03:01]}  Bf5 {[%clk 0:03:00]} 5. c4 {[%clk 0:03:01]}  dxc4 {[%clk 0:03:01]} 6. Na3 {[%clk 0:02:50]}  Nbd7 {[%clk 0:03:00]} 7. Nxc4 {[%clk 0:02:50]}  e6 {[%clk 0:03:00]} 8. b3 {[%clk 0:02:47]}  Be7 {[%clk 0:03:00]} 9. Bb2 {[%clk 0:02:48]}  O-O {[%clk 0:03:00]} 10. d3 {[%clk 0:02:46]}  Nb6 {[%clk 0:02:52]} 11. Nh4 {[%clk 0:02:30]}  Nxc4 {[%clk 0:02:46]} 12. bxc4 {[%clk 0:02:28]}  Bg4 {[%clk 0:02:46]} 13. h3 {[%clk 0:02:27]}  Bh5 {[%clk 0:02:46]} 14. g4 {[%clk 0:02:28]}  Bg6 {[%clk 0:02:46]} 15. Nxg6 {[%clk 0:02:28]}  hxg6 {[%clk 0:02:47]} 16. Rb1 {[%clk 0:02:27]}  Qc7 {[%clk 0:02:39]} 17. Qa4 {[%clk 0:02:15]}  Rfd8 {[%clk 0:02:18]} 18. Bc3 {[%clk 0:02:13]}  Bc5 {[%clk 0:02:00]} 19. Rfd1 {[%clk 0:02:03]}  Qg3 {[%clk 0:01:45]} 20. Be1 {[%clk 0:01:40]}  Qc7 {[%clk 0:01:38]} 21. Qa5 {[%clk 0:01:29]}  Bb6 {[%clk 0:01:35]} 22. Qg5 {[%clk 0:01:27]}  Rd7 {[%clk 0:01:05]} 23. Bc3 {[%clk 0:01:14]}  Rad8 {[%clk 0:00:42]} 24. a4 {[%clk 0:01:02]}  Bd4 {[%clk 0:00:34]} 25. Ba5 {[%clk 0:01:00]}  b6 {[%clk 0:00:32]} 26. Be1 {[%clk 0:01:00]}  Be5 {[%clk 0:00:28]} 27. a5 {[%clk 0:00:52]}  Bf4 {[%clk 0:00:28]} 28. axb6 {[%clk 0:00:47]}  axb6 {[%clk 0:00:29]} 29. Qxf4 {[%clk 0:00:34]}  Qxf4 {[%clk 0:00:29]} 30. Rxb6 {[%clk 0:00:34]}  c5 {[%clk 0:00:26]} 31. Bd2 {[%clk 0:00:34]}  Qc7 {[%clk 0:00:25]} 32. Rb5 {[%clk 0:00:34]}  Rb8 {[%clk 0:00:24]} 33. Rdb1 {[%clk 0:00:33]}  Rxb5 {[%clk 0:00:24]} 34. Rxb5 {[%clk 0:00:30]}  Qe5 {[%clk 0:00:22]} 35. Be3 {[%clk 0:00:29]}  Rc7 {[%clk 0:00:17]} 36. Bf3 {[%clk 0:00:29]}  g5 {[%clk 0:00:17]} 37. Kg2 {[%clk 0:00:29]}  Nd7 {[%clk 0:00:16]} 38. Ra5 {[%clk 0:00:28]}  f6 {[%clk 0:00:16]} 39. Rb5 {[%clk 0:00:28]}  Qd6 {[%clk 0:00:15]} 40. Ra5 {[%clk 0:00:25]}  Ne5 {[%clk 0:00:15]} 41. Be4 {[%clk 0:00:26]}  Kf7 {[%clk 0:00:13]} 42. Kg1 {[%clk 0:00:18]}  Ng6 {[%clk 0:00:13]} 43. Ra1 {[%clk 0:00:18]}  Nf4 {[%clk 0:00:13]} 44. Bxf4 {[%clk 0:00:15]}  Qxf4 {[%clk 0:00:12]} 45. Bf3 {[%clk 0:00:16]}  Qe5 {[%clk 0:00:12]} 46. Rb1 {[%clk 0:00:15]}  Ra7 {[%clk 0:00:12]} 47. Kg2 {[%clk 0:00:16]}  Qc3 {[%clk 0:00:10]} 48. Rb5 {[%clk 0:00:15]}  Ra1 {[%clk 0:00:10]} 49. Rb7+ {[%clk 0:00:13]}  Kf8 {[%clk 0:00:09]} 50. Rb8+ {[%clk 0:00:13]}  Ke7 {[%clk 0:00:10]} 51. Rb7+ {[%clk 0:00:14]}  Kd6 {[%clk 0:00:10]} 52. Rb6+ {[%clk 0:00:14]}  Kc7 {[%clk 0:00:09]} 53. Rb7+ {[%clk 0:00:14]}  Kc8 {[%clk 0:00:09]} 54. Rxg7 {[%clk 0:00:13]}  Qe1 {[%clk 0:00:09]} 55. Bb7+ {[%clk 0:00:08]}  Kb8 {[%clk 0:00:09]} 56. Kf3 {[%clk 0:00:06]}  Qh1+ {[%clk 0:00:09]} 57. Ke3 {[%clk 0:00:07]}  Qxb7 {[%clk 0:00:10]} 58. Rxb7+ {[%clk 0:00:06]}  Kxb7 {[%clk 0:00:10]} 59. f4 {[%clk 0:00:07]}  Rh1 {[%clk 0:00:10]} 60. Ke4 {[%clk 0:00:05]}  Rxh3 {[%clk 0:00:11]} 61. f5 {[%clk 0:00:06]}  e5 {[%clk 0:00:11]} 62. Kd5 {[%clk 0:00:06]}  Rg3 {[%clk 0:00:11]} 63. Ke6 {[%clk 0:00:07]}  Rxg4 {[%clk 0:00:11]} 64. Kxf6 {[%clk 0:00:08]}  Rg2 {[%clk 0:00:11]} 65. e4 {[%clk 0:00:06]}  g4 {[%clk 0:00:11]} 66. Kxe5 {[%clk 0:00:07]}  g3 {[%clk 0:00:12]} 67. Kf4 {[%clk 0:00:07]}  Kc7 {[%clk 0:00:12]} 68. e5 {[%clk 0:00:07]}  Kd7 {[%clk 0:00:12]} 69. Kf3 {[%clk 0:00:05]}  Rd2 {[%clk 0:00:12]} 70. Kxg3 {[%clk 0:00:04]}  Rxd3+ {[%clk 0:00:12]} 71. Kf4 {[%clk 0:00:05]}  Rd4+ {[%clk 0:00:13]} 72. Kg5 {[%clk 0:00:06]}  Rxc4 {[%clk 0:00:13]} 73. Kf6 {[%clk 0:00:06]}  Re4 {[%clk 0:00:12]} 74. e6+ {[%clk 0:00:06]}  Kd6 {[%clk 0:00:13]} 75. Kf7 {[%clk 0:00:05]}  c4 {[%clk 0:00:13]} 0-1


[Site "https://www.chess.com"]

[Event "Titled Tuesday Blitz August 10 2021"]
[White "Timofeev, Artyom"]
[Black "Nasuta, Grzegorz"]
[WhiteFideId "4140419"]
[BlackFideId "1141686"]
[WhiteElo "2582"]
[BlackElo "2320"]
[Result "1-0"]
[Round "03"]
[TimeControl "180+1"]
[Date "2021.08.10"]
[WhiteClock "0:00:26"]
[BlackClock "0:00:02"]

1. c4 {[%clk 0:03:00]}  e5 {[%clk 0:02:59]} 2. e3 {[%clk 0:03:00]}  Nf6 {[%clk 0:02:58]} 3. Nc3 {[%clk 0:02:59]}  Be7 {[%clk 0:02:58]} 4. Nf3 {[%clk 0:02:57]}  Nc6 {[%clk 0:02:56]} 5. Be2 {[%clk 0:02:56]}  O-O {[%clk 0:02:55]} 6. O-O {[%clk 0:02:56]}  Bb4 {[%clk 0:02:45]} 7. Qc2 {[%clk 0:02:50]}  Bxc3 {[%clk 0:02:41]} 8. Qxc3 {[%clk 0:02:50]}  Re8 {[%clk 0:02:38]} 9. b3 {[%clk 0:02:44]}  d5 {[%clk 0:02:39]} 10. cxd5 {[%clk 0:02:44]}  Nxd5 {[%clk 0:02:40]} 11. Qb2 {[%clk 0:02:39]}  Ndb4 {[%clk 0:02:19]} 12. a3 {[%clk 0:02:28]}  Nd3 {[%clk 0:02:19]} 13. Qc3 {[%clk 0:02:28]}  Nxc1 {[%clk 0:01:52]} 14. Rfxc1 {[%clk 0:02:25]}  e4 {[%clk 0:01:52]} 15. Ne1 {[%clk 0:02:25]}  Qg5 {[%clk 0:01:37]} 16. d3 {[%clk 0:02:20]}  Bf5 {[%clk 0:01:34]} 17. dxe4 {[%clk 0:02:13]}  Bxe4 {[%clk 0:01:35]} 18. Bf3 {[%clk 0:02:10]}  Rad8 {[%clk 0:01:30]} 19. Bxe4 {[%clk 0:02:08]}  Rxe4 {[%clk 0:01:31]} 20. Nf3 {[%clk 0:02:09]}  Qd5 {[%clk 0:01:04]} 21. b4 {[%clk 0:02:04]}  Rg4 {[%clk 0:01:00]} 22. Kh1 {[%clk 0:02:01]}  Rd6 {[%clk 0:00:50]} 23. Qc2 {[%clk 0:01:12]}  Rxg2 {[%clk 0:00:30]} 24. Kxg2 {[%clk 0:01:10]}  Rg6+ {[%clk 0:00:29]} 25. Qxg6 {[%clk 0:01:09]}  hxg6 {[%clk 0:00:30]} 26. Rc5 {[%clk 0:01:04]}  Qe4 {[%clk 0:00:30]} 27. h3 {[%clk 0:00:56]}  b6 {[%clk 0:00:28]} 28. Rg5 {[%clk 0:00:53]}  f5 {[%clk 0:00:20]} 29. Rd1 {[%clk 0:00:47]}  Ne5 {[%clk 0:00:18]} 30. Rg3 {[%clk 0:00:47]}  g5 {[%clk 0:00:18]} 31. Rd4 {[%clk 0:00:46]}  Qc6 {[%clk 0:00:17]} 32. e4 {[%clk 0:00:45]}  Nxf3 {[%clk 0:00:12]} 33. Rxf3 {[%clk 0:00:45]}  fxe4 {[%clk 0:00:12]} 34. Re3 {[%clk 0:00:45]}  Qf6 {[%clk 0:00:03]} 35. Rdxe4 {[%clk 0:00:45]}  c5 {[%clk 0:00:03]} 36. bxc5 {[%clk 0:00:43]}  bxc5 {[%clk 0:00:04]} 37. Rc4 {[%clk 0:00:38]}  Qc6+ {[%clk 0:00:03]} 38. Ree4 {[%clk 0:00:38]}  Qd5 {[%clk 0:00:03]} 39. a4 {[%clk 0:00:37]}  a5 {[%clk 0:00:03]} 40. Kg3 {[%clk 0:00:36]}  Qd3+ {[%clk 0:00:03]} 41. Kg2 {[%clk 0:00:35]}  Qd5 {[%clk 0:00:03]} 42. Kg3 {[%clk 0:00:33]}  Qd3+ {[%clk 0:00:03]} 43. Kg4 {[%clk 0:00:33]}  Qd5 {[%clk 0:00:02]} 44. f3 {[%clk 0:00:30]}  Kh7 {[%clk 0:00:02]} 45. Rc2 {[%clk 0:00:26]} 1-0


[Site "https://www.chess.com"]

[Event "Titled Tuesday Blitz August 10 2021"]
[White "Yoo, Christopher Woojin"]
[Black "Ozen, Bahadir"]
[WhiteFideId "30909694"]
[BlackFideId "6337058"]
[WhiteElo "2105"]
[BlackElo "2503"]
[Result "1-0"]
[Round "03"]
[TimeControl "180+1"]
[Date "2021.08.10"]
[WhiteClock "0:02:05"]
[BlackClock "0:00:31"]

1. e4 {[%clk 0:03:00]}  c6 {[%clk 0:03:00]} 2. d4 {[%clk 0:02:56]}  d5 {[%clk 0:03:00]} 3. exd5 {[%clk 0:02:56]}  cxd5 {[%clk 0:03:00]} 4. c4 {[%clk 0:02:57]}  Nf6 {[%clk 0:03:00]} 5. Nc3 {[%clk 0:02:56]}  Nc6 {[%clk 0:02:59]} 6. Nf3 {[%clk 0:02:54]}  Bg4 {[%clk 0:02:58]} 7. Bg5 {[%clk 0:02:54]}  Ne4 {[%clk 0:02:57]} 8. Be3 {[%clk 0:02:51]}  Qa5 {[%clk 0:01:53]} 9. Qb3 {[%clk 0:02:47]}  Bxf3 {[%clk 0:01:53]} 10. Qxb7 {[%clk 0:02:35]}  Nd8 {[%clk 0:01:52]} 11. Qxa8 {[%clk 0:02:35]}  Nxc3 {[%clk 0:01:40]} 12. Bd2 {[%clk 0:02:34]}  Qb6 {[%clk 0:01:26]} 13. Bxc3 {[%clk 0:02:30]}  Qe6+ {[%clk 0:01:26]} 14. Kd2 {[%clk 0:02:29]}  Qh6+ {[%clk 0:01:27]} 15. Kc2 {[%clk 0:02:18]}  Be4+ {[%clk 0:01:19]} 16. Kd1 {[%clk 0:02:15]}  Qh5+ {[%clk 0:00:30]} 17. Be2 {[%clk 0:02:09]}  Qg6 {[%clk 0:00:31]} 18. Ba5 {[%clk 0:02:05]} 1-0


[Site "https://www.chess.com"]

[Event "Titled Tuesday Blitz August 10 2021"]
[White "Bluebaum, Matthias"]
[Black "Batsuren, Dambasuren"]
[WhiteFideId "24651516"]
[BlackFideId "4902920"]
[WhiteElo "2685"]
[BlackElo "2371"]
[Result "1-0"]
[Round "04"]
[TimeControl "180+1"]
[Date "2021.08.10"]
[WhiteClock "0:00:46"]
[BlackClock "0:00:07"]

1. d4 {[%clk 0:03:00]}  Nf6 {[%clk 0:03:00]} 2. c4 {[%clk 0:03:01]}  e6 {[%clk 0:03:01]} 3. Nc3 {[%clk 0:03:01]}  Bb4 {[%clk 0:03:01]} 4. e3 {[%clk 0:03:02]}  O-O {[%clk 0:03:01]} 5. Bd2 {[%clk 0:03:02]}  d5 {[%clk 0:02:59]} 6. Nf3 {[%clk 0:03:02]}  b6 {[%clk 0:02:58]} 7. cxd5 {[%clk 0:03:02]}  exd5 {[%clk 0:02:58]} 8. Bd3 {[%clk 0:03:03]}  Bb7 {[%clk 0:02:57]} 9. O-O {[%clk 0:03:00]}  Bd6 {[%clk 0:02:55]} 10. Nb5 {[%clk 0:02:58]}  Be7 {[%clk 0:02:55]} 11. Rc1 {[%clk 0:02:58]}  c6 {[%clk 0:02:52]} 12. Nc3 {[%clk 0:02:58]}  Nbd7 {[%clk 0:02:51]} 13. Ne5 {[%clk 0:02:57]}  c5 {[%clk 0:02:38]} 14. f4 {[%clk 0:02:56]}  Ne4 {[%clk 0:02:29]} 15. Be1 {[%clk 0:02:27]}  cxd4 {[%clk 0:02:17]} 16. exd4 {[%clk 0:02:26]}  Ndf6 {[%clk 0:02:12]} 17. Bh4 {[%clk 0:02:19]}  Nxc3 {[%clk 0:02:03]} 18. Rxc3 {[%clk 0:02:08]}  Ne4 {[%clk 0:01:52]} 19. Bxe7 {[%clk 0:02:07]}  Qxe7 {[%clk 0:01:49]} 20. Bxe4 {[%clk 0:02:07]}  dxe4 {[%clk 0:01:49]} 21. Ng4 {[%clk 0:02:07]}  Rfd8 {[%clk 0:01:43]} 22. Ne3 {[%clk 0:02:00]}  Qf6 {[%clk 0:01:35]} 23. d5 {[%clk 0:01:51]}  Bxd5 {[%clk 0:01:22]} 24. Nxd5 {[%clk 0:01:50]}  Qe6 {[%clk 0:01:22]} 25. Nc7 {[%clk 0:01:38]}  Rxd1 {[%clk 0:01:23]} 26. Nxe6 {[%clk 0:01:30]}  Rxf1+ {[%clk 0:01:23]} 27. Kxf1 {[%clk 0:01:31]}  fxe6 {[%clk 0:01:23]} 28. Ke2 {[%clk 0:01:32]}  Rd8 {[%clk 0:01:01]} 29. Ke3 {[%clk 0:01:31]}  Rd7 {[%clk 0:00:50]} 30. Rc2 {[%clk 0:01:28]}  Kf7 {[%clk 0:00:49]} 31. Kxe4 {[%clk 0:01:29]}  Kf6 {[%clk 0:00:50]} 32. g3 {[%clk 0:01:28]}  h5 {[%clk 0:00:43]} 33. b4 {[%clk 0:01:26]}  Rd5 {[%clk 0:00:30]} 34. a4 {[%clk 0:01:05]}  g5 {[%clk 0:00:30]} 35. fxg5+ {[%clk 0:01:04]}  Rxg5 {[%clk 0:00:31]} 36. Rf2+ {[%clk 0:00:58]}  Ke7 {[%clk 0:00:30]} 37. Rf4 {[%clk 0:00:57]}  a5 {[%clk 0:00:16]} 38. b5 {[%clk 0:00:57]}  Rc5 {[%clk 0:00:16]} 39. Kf3 {[%clk 0:00:57]}  e5 {[%clk 0:00:14]} 40. Rh4 {[%clk 0:00:56]}  Kf6 {[%clk 0:00:15]} 41. Ke3 {[%clk 0:00:48]}  Kg5 {[%clk 0:00:15]} 42. Ke4 {[%clk 0:00:44]}  Rc4+ {[%clk 0:00:05]} 43. Kxe5 {[%clk 0:00:45]}  Rxh4 {[%clk 0:00:06]} 44. gxh4+ {[%clk 0:00:46]}  Kxh4 {[%clk 0:00:07]} 45. Kd6 {[%clk 0:00:46]}  Kh3 {[%clk 0:00:08]} 46. Kc6 {[%clk 0:00:47]}  Kxh2 {[%clk 0:00:09]} 47. Kxb6 {[%clk 0:00:48]}  h4 {[%clk 0:00:06]} 48. Kxa5 {[%clk 0:00:45]}  h3 {[%clk 0:00:07]} 49. b6 {[%clk 0:00:46]} 1-0


[Site "https://www.chess.com"]

[Event "Titled Tuesday Blitz August 10 2021"]
[White "Bok, Benjamin"]
[Black "Khanin, Semen"]
[WhiteFideId "1017063"]
[BlackFideId "4111990"]
[WhiteElo "2658"]
[BlackElo "2521"]
[Result "0-1"]
[Round "04"]
[TimeControl "180+1"]
[Date "2021.08.10"]
[WhiteClock "0:00:03"]
[BlackClock "0:01:02"]

1. d4 {[%clk 0:03:00]}  Nf6 {[%clk 0:02:59]} 2. c4 {[%clk 0:03:01]}  e6 {[%clk 0:03:00]} 3. Nf3 {[%clk 0:03:01]}  d5 {[%clk 0:02:59]} 4. Nc3 {[%clk 0:03:02]}  dxc4 {[%clk 0:02:59]} 5. e4 {[%clk 0:03:01]}  b5 {[%clk 0:02:55]} 6. e5 {[%clk 0:03:02]}  Nd5 {[%clk 0:02:55]} 7. Nxb5 {[%clk 0:03:02]}  Nb6 {[%clk 0:02:55]} 8. Be2 {[%clk 0:03:01]}  Nc6 {[%clk 0:02:56]} 9. O-O {[%clk 0:02:59]}  Rb8 {[%clk 0:02:55]} 10. Nc3 {[%clk 0:02:48]}  Be7 {[%clk 0:02:54]} 11. Qd2 {[%clk 0:02:44]}  O-O {[%clk 0:02:48]} 12. Rd1 {[%clk 0:02:43]}  Kh8 {[%clk 0:02:43]} 13. Qf4 {[%clk 0:02:31]}  f5 {[%clk 0:02:42]} 14. exf6 {[%clk 0:02:01]}  Bxf6 {[%clk 0:02:41]} 15. Be3 {[%clk 0:01:52]}  Nd5 {[%clk 0:02:39]} 16. Qg3 {[%clk 0:01:48]}  Rxb2 {[%clk 0:02:38]} 17. Nxd5 {[%clk 0:01:19]}  exd5 {[%clk 0:02:38]} 18. Bf1 {[%clk 0:01:19]}  Bf5 {[%clk 0:02:37]} 19. Ne5 {[%clk 0:01:17]}  Nxe5 {[%clk 0:02:15]} 20. dxe5 {[%clk 0:01:18]}  Bh4 {[%clk 0:02:15]} 21. Qf4 {[%clk 0:00:55]}  Bg6 {[%clk 0:01:42]} 22. Qd4 {[%clk 0:00:34]}  Bxf2+ {[%clk 0:01:41]} 23. Kh1 {[%clk 0:00:34]}  Bxe3 {[%clk 0:01:31]} 24. Qxb2 {[%clk 0:00:34]}  c5 {[%clk 0:01:26]} 25. e6 {[%clk 0:00:24]}  Qh4 {[%clk 0:01:08]} 26. Rxd5 {[%clk 0:00:12]}  Bf4 {[%clk 0:01:05]} 27. g3 {[%clk 0:00:09]}  Bxg3 {[%clk 0:01:03]} 28. e7 {[%clk 0:00:03]}  Be4+ {[%clk 0:01:02]} 29. Kg1 {[%clk 0:00:03]}  Bf2+ {[%clk 0:01:02]} 0-1


[Site "https://www.chess.com"]